[Event "Titled Tuesday Blitz July 18 Late 2023"]
[White "Olsen, Filip Boe"]
[Black "Anton Guijarro, David"]
[WhiteFideId "1440640"]
[BlackFideId "2285525"]
[WhiteElo "2663"]
[BlackElo "2918"]
[Result "0-1"]
[Round "8"]
[TimeControl "180+2"]
[Date "2023.07.18"]
[WhiteClock "0:00:01"]
[BlackClock "0:00:12"]
[Board "20"]

1. d4 {[%clk 0:03:00]}  c6 {[%clk 0:03:00]} 2. Nf3 {[%clk 0:02:56]}  a6 {[%clk 0:02:59]} 3. Bf4 {[%clk 0:02:54]}  d5 {[%clk 0:02:57]} 4. e3 {[%clk 0:02:53]}  Bg4 {[%clk 0:02:57]} 5. h3 {[%clk 0:02:50]}  Bh5 {[%clk 0:02:57]} 6. Nbd2 {[%clk 0:02:47]}  e6 {[%clk 0:02:56]} 7. g4 {[%clk 0:02:44]}  Bg6 {[%clk 0:02:56]} 8. Ne5 {[%clk 0:02:44]}  Nd7 {[%clk 0:02:56]} 9. Nxg6 {[%clk 0:02:42]}  hxg6 {[%clk 0:02:56]} 10. Bg2 {[%clk 0:02:42]}  g5 {[%clk 0:02:53]} 11. Bg3 {[%clk 0:02:40]}  Ne7 {[%clk 0:02:53]} 12. h4 {[%clk 0:02:31]}  gxh4 {[%clk 0:02:52]} 13. Rxh4 {[%clk 0:02:32]}  Rxh4 {[%clk 0:02:52]} 14. Bxh4 {[%clk 0:02:31]}  Qb6 {[%clk 0:02:53]} 15. Nb3 {[%clk 0:02:29]}  Ng6 {[%clk 0:02:49]} 16. Bg3 {[%clk 0:02:29]}  Be7 {[%clk 0:02:28]} 17. Qe2 {[%clk 0:02:24]}  a5 {[%clk 0:02:12]} 18. a4 {[%clk 0:02:00]}  Bh4 {[%clk 0:02:10]} 19. Bd6 {[%clk 0:01:59]}  Be7 {[%clk 0:02:09]} 20. Bxe7 {[%clk 0:01:55]}  Kxe7 {[%clk 0:02:09]} 21. Qd2 {[%clk 0:01:54]}  Nh4 {[%clk 0:01:51]} 22. Bh1 {[%clk 0:01:53]}  g5 {[%clk 0:01:49]} 23. O-O-O {[%clk 0:01:51]}  Qb4 {[%clk 0:01:48]} 24. e4 {[%clk 0:01:30]}  Qxd2+ {[%clk 0:01:40]} 25. Kxd2 {[%clk 0:01:30]}  b6 {[%clk 0:01:37]} 26. Ke3 {[%clk 0:01:27]}  Nf6 {[%clk 0:01:29]} 27. Rg1 {[%clk 0:01:20]}  Rh8 {[%clk 0:01:26]} 28. Nd2 {[%clk 0:01:14]}  Ng6 {[%clk 0:01:23]} 29. c4 {[%clk 0:01:09]}  Rh3+ {[%clk 0:01:19]} 30. Bf3 {[%clk 0:00:52]}  Nf4 {[%clk 0:00:48]} 31. Rg3 {[%clk 0:00:44]}  Rh2 {[%clk 0:00:47]} 32. b3 {[%clk 0:00:37]}  Rh8 {[%clk 0:00:21]} 33. Rg1 {[%clk 0:00:34]}  Rh3 {[%clk 0:00:18]} 34. Rg3 {[%clk 0:00:34]}  Rh4 {[%clk 0:00:17]} 35. Rg1 {[%clk 0:00:25]}  Kf8 {[%clk 0:00:16]} 36. Rg3 {[%clk 0:00:25]}  Kg7 {[%clk 0:00:17]} 37. Rg1 {[%clk 0:00:25]}  Rh8 {[%clk 0:00:17]} 38. e5 {[%clk 0:00:20]}  Nd7 {[%clk 0:00:16]} 39. cxd5 {[%clk 0:00:20]}  exd5 {[%clk 0:00:15]} 40. Rc1 {[%clk 0:00:19]}  c5 {[%clk 0:00:16]} 41. Nf1 {[%clk 0:00:12]}  Re8 {[%clk 0:00:13]} 42. Ng3 {[%clk 0:00:11]}  cxd4+ {[%clk 0:00:12]} 43. Kxd4 {[%clk 0:00:12]}  Nxe5 {[%clk 0:00:12]} 44. Nf5+ {[%clk 0:00:12]}  Kf6 {[%clk 0:00:11]} 45. Bd1 {[%clk 0:00:06]}  Rd8 {[%clk 0:00:11]} 46. Rc7 {[%clk 0:00:06]}  Ne6+ {[%clk 0:00:11]} 47. Ke3 {[%clk 0:00:01]}  Nxc7 {[%clk 0:00:12]} 0-1


[Site "https://www.chess.com"]

[Event "Titled Tuesday Blitz July 18 Late 2023"]
[White "Bachmann, Axel"]
[Black "robertoalejandro10"]
[WhiteFideId "3700488"]
[WhiteElo "2842"]
[BlackElo "2589"]
[Result "1/2-1/2"]
[Round "8"]
[TimeControl "180+2"]
[Date "2023.07.18"]
[WhiteClock "0:00:02"]
[BlackClock "0:00:05"]
[Board "25"]

1. e4 {[%clk 0:02:59]}  c5 {[%clk 0:02:58]} 2. Nf3 {[%clk 0:02:59]}  g6 {[%clk 0:02:59]} 3. d4 {[%clk 0:03:00]}  cxd4 {[%clk 0:03:00]} 4. Nxd4 {[%clk 0:03:00]}  Bg7 {[%clk 0:03:00]} 5. c4 {[%clk 0:03:01]}  Nc6 {[%clk 0:03:00]} 6. Be3 {[%clk 0:02:57]}  Nf6 {[%clk 0:03:00]} 7. Nc3 {[%clk 0:02:58]}  Ng4 {[%clk 0:03:00]} 8. Qxg4 {[%clk 0:02:57]}  Nxd4 {[%clk 0:03:00]} 9. Qd1 {[%clk 0:02:58]}  Ne6 {[%clk 0:03:00]} 10. Qd2 {[%clk 0:02:54]}  Qa5 {[%clk 0:02:59]} 11. Rc1 {[%clk 0:02:53]}  b6 {[%clk 0:02:58]} 12. Be2 {[%clk 0:02:49]}  Bb7 {[%clk 0:02:59]} 13. f3 {[%clk 0:02:50]}  g5 {[%clk 0:02:55]} 14. b3 {[%clk 0:02:45]}  Be5 {[%clk 0:02:52]} 15. Nd5 {[%clk 0:02:33]}  Qxd2+ {[%clk 0:02:51]} 16. Kxd2 {[%clk 0:02:34]}  Rc8 {[%clk 0:02:24]} 17. h4 {[%clk 0:02:28]}  Nf4 {[%clk 0:02:23]} 18. hxg5 {[%clk 0:02:17]}  Nxg2 {[%clk 0:02:20]} 19. f4 {[%clk 0:01:53]}  Nxe3 {[%clk 0:01:48]} 20. Kxe3 {[%clk 0:01:54]}  Bd6 {[%clk 0:01:39]} 21. Rh6 {[%clk 0:01:48]}  Bc5+ {[%clk 0:01:35]} 22. Kd3 {[%clk 0:01:40]}  Kf8 {[%clk 0:01:03]} 23. Rch1 {[%clk 0:01:36]}  Kg7 {[%clk 0:00:56]} 24. Bg4 {[%clk 0:01:36]}  Bxd5 {[%clk 0:00:52]} 25. exd5 {[%clk 0:01:35]}  e6 {[%clk 0:00:52]} 26. f5 {[%clk 0:01:33]}  exf5 {[%clk 0:00:33]} 27. Bxf5 {[%clk 0:01:34]}  Rcd8 {[%clk 0:00:27]} 28. Rxh7+ {[%clk 0:01:33]}  Rxh7 {[%clk 0:00:28]} 29. Rxh7+ {[%clk 0:01:33]}  Kg8 {[%clk 0:00:28]} 30. Rh4 {[%clk 0:01:28]}  d6 {[%clk 0:00:26]} 31. Re4 {[%clk 0:01:25]}  Kf8 {[%clk 0:00:26]} 32. Rh4 {[%clk 0:01:25]}  Kg7 {[%clk 0:00:19]} 33. Rh7+ {[%clk 0:01:20]}  Kg8 {[%clk 0:00:19]} 34. Be4 {[%clk 0:01:17]}  Re8 {[%clk 0:00:18]} 35. g6 {[%clk 0:01:18]}  fxg6 {[%clk 0:00:12]} 36. Rxa7 {[%clk 0:01:19]}  g5 {[%clk 0:00:11]} 37. Rb7 {[%clk 0:01:13]}  Rf8 {[%clk 0:00:10]} 38. b4 {[%clk 0:01:11]}  Bxb4 {[%clk 0:00:09]} 39. Rxb6 {[%clk 0:01:11]}  Bc5 {[%clk 0:00:10]} 40. Rb2 {[%clk 0:01:08]}  Rf2 {[%clk 0:00:08]} 41. Rb8+ {[%clk 0:01:03]}  Kg7 {[%clk 0:00:08]} 42. a4 {[%clk 0:01:04]}  Ra2 {[%clk 0:00:08]} 43. Ra8 {[%clk 0:01:04]}  g4 {[%clk 0:00:08]} 44. Re8 {[%clk 0:00:15]}  g3 {[%clk 0:00:07]} 45. Re6 {[%clk 0:00:16]}  Rxa4 {[%clk 0:00:03]} 46. Bf5 {[%clk 0:00:15]}  Ra3+ {[%clk 0:00:02]} 47. Ke4 {[%clk 0:00:16]}  g2 {[%clk 0:00:02]} 48. Rg6+ {[%clk 0:00:16]}  Kf7 {[%clk 0:00:03]} 49. Rxg2 {[%clk 0:00:17]}  Re3+ {[%clk 0:00:03]} 50. Kf4 {[%clk 0:00:15]}  Re1 {[%clk 0:00:03]} 51. Bd3 {[%clk 0:00:12]}  Be3+ {[%clk 0:00:03]} 52. Kf5 {[%clk 0:00:11]}  Bc5 {[%clk 0:00:04]} 53. Rh2 {[%clk 0:00:10]}  Kg7 {[%clk 0:00:04]} 54. Kg5 {[%clk 0:00:10]}  Re5+ {[%clk 0:00:05]} 55. Bf5 {[%clk 0:00:11]}  Be3+ {[%clk 0:00:05]} 56. Kg4 {[%clk 0:00:11]}  Kf6 {[%clk 0:00:05]} 57. Rh8 {[%clk 0:00:10]}  Bc5 {[%clk 0:00:05]} 58. Rh6+ {[%clk 0:00:10]}  Kg7 {[%clk 0:00:06]} 59. Rh5 {[%clk 0:00:09]}  Re1 {[%clk 0:00:06]} 60. Rh7+ {[%clk 0:00:06]}  Kf6 {[%clk 0:00:06]} 61. Rh6+ {[%clk 0:00:07]}  Kg7 {[%clk 0:00:06]} 62. Rg6+ {[%clk 0:00:07]}  Kf7 {[%clk 0:00:06]} 63. Rh6 {[%clk 0:00:07]}  Rg1+ {[%clk 0:00:06]} 64. Kf3 {[%clk 0:00:08]}  Rf1+ {[%clk 0:00:06]} 65. Ke4 {[%clk 0:00:09]}  Re1+ {[%clk 0:00:06]} 66. Kd3 {[%clk 0:00:05]}  Re3+ {[%clk 0:00:06]} 67. Kd2 {[%clk 0:00:05]}  Rf3 {[%clk 0:00:05]} 68. Bg4 {[%clk 0:00:04]}  Be3+ {[%clk 0:00:05]} 69. Ke2 {[%clk 0:00:04]}  Bxh6 {[%clk 0:00:06]} 70. Kxf3 {[%clk 0:00:03]}  Ke7 {[%clk 0:00:06]} 71. Be6 {[%clk 0:00:03]}  Bd2 {[%clk 0:00:05]} 72. Kg2 {[%clk 0:00:02]} 1/2-1/2


[Site "https://www.chess.com"]

[Event "Titled Tuesday Blitz July 18 Late 2023"]
[White "Fantastic_Power"]
[Black "Marosi, Levente"]
[BlackFideId "747181"]
[WhiteElo "2752"]
[BlackElo "2556"]
[Result "1-0"]
[Round "8"]
[TimeControl "180+2"]
[Date "2023.07.18"]
[WhiteClock "0:00:30"]
[BlackClock "0:00:08"]
[Board "28"]

1. e4 {[%clk 0:03:00]}  c6 {[%clk 0:02:58]} 2. d4 {[%clk 0:03:00]}  d5 {[%clk 0:02:58]} 3. e5 {[%clk 0:03:01]}  Bf5 {[%clk 0:02:57]} 4. h4 {[%clk 0:03:01]}  Qb6 {[%clk 0:02:56]} 5. a4 {[%clk 0:03:01]}  a5 {[%clk 0:02:55]} 6. Nc3 {[%clk 0:02:50]}  h5 {[%clk 0:02:53]} 7. Nge2 {[%clk 0:02:47]}  e6 {[%clk 0:02:51]} 8. Ng3 {[%clk 0:02:46]}  Bg6 {[%clk 0:02:49]} 9. Be2 {[%clk 0:02:42]}  c5 {[%clk 0:02:42]} 10. Be3 {[%clk 0:02:14]}  Nc6 {[%clk 0:02:34]} 11. Nb5 {[%clk 0:02:01]}  cxd4 {[%clk 0:02:07]} 12. Bxd4 {[%clk 0:02:01]}  Nxd4 {[%clk 0:01:57]} 13. Qxd4 {[%clk 0:02:02]}  Bc5 {[%clk 0:01:51]} 14. Qf4 {[%clk 0:02:01]}  Ne7 {[%clk 0:01:46]} 15. O-O {[%clk 0:02:00]}  Nf5 {[%clk 0:01:26]} 16. Nxf5 {[%clk 0:01:58]}  Bxf5 {[%clk 0:01:27]} 17. c4 {[%clk 0:01:57]}  dxc4 {[%clk 0:01:25]} 18. Rac1 {[%clk 0:01:40]}  O-O-O {[%clk 0:01:15]} 19. Qxc4 {[%clk 0:01:37]}  Rd5 {[%clk 0:00:47]} 20. Nd6+ {[%clk 0:01:12]}  Kb8 {[%clk 0:00:40]} 21. Nxf5 {[%clk 0:01:12]}  Rxe5 {[%clk 0:00:36]} 22. Ng3 {[%clk 0:01:12]}  Rc8 {[%clk 0:00:31]} 23. Qf4 {[%clk 0:01:09]}  Bd6 {[%clk 0:00:22]} 24. Rxc8+ {[%clk 0:01:07]}  Kxc8 {[%clk 0:00:23]} 25. Qxf7 {[%clk 0:01:05]}  Kb8 {[%clk 0:00:23]} 26. Bf3 {[%clk 0:00:58]}  Ka7 {[%clk 0:00:19]} 27. Qxg7 {[%clk 0:00:53]}  Rc5 {[%clk 0:00:15]} 28. Qd4 {[%clk 0:00:41]}  Rc2 {[%clk 0:00:08]} 29. Qxb6+ {[%clk 0:00:41]}  Kxb6 {[%clk 0:00:09]} 30. Nxh5 {[%clk 0:00:33]}  Rxb2 {[%clk 0:00:10]} 31. Ng7 {[%clk 0:00:32]}  Be5 {[%clk 0:00:09]} 32. Nxe6 {[%clk 0:00:32]}  Rb4 {[%clk 0:00:10]} 33. g3 {[%clk 0:00:30]}  Rxa4 {[%clk 0:00:09]} 34. Rb1+ {[%clk 0:00:30]}  Rb4 {[%clk 0:00:06]} 35. Rxb4+ {[%clk 0:00:30]}  axb4 {[%clk 0:00:07]} 36. Bd1 {[%clk 0:00:31]}  Kc6 {[%clk 0:00:07]} 37. Bb3 {[%clk 0:00:31]}  b5 {[%clk 0:00:07]} 38. f4 {[%clk 0:00:31]}  Kd6 {[%clk 0:00:08]} 39. fxe5+ {[%clk 0:00:30]}  Kxe5 {[%clk 0:00:08]} 40. h5 {[%clk 0:00:30]} 1-0


[Site "https://www.chess.com"]

[Event "Titled Tuesday Blitz July 18 Late 2023"]
[White "Philippe, Guillaume"]
[Black "Riehle, Marco"]
[WhiteFideId "36048763"]
[BlackFideId "12904392"]
[WhiteElo "2540"]
[BlackElo "2743"]
[Result "1-0"]
[Round "8"]
[TimeControl "180+2"]
[Date "2023.07.18"]
[WhiteClock "0:01:45"]
[BlackClock "0:02:04"]
[Board "29"]

1. e4 {[%clk 0:03:00]}  e5 {[%clk 0:02:59]} 2. Nf3 {[%clk 0:02:59]}  Nf6 {[%clk 0:02:59]} 3. d4 {[%clk 0:02:57]}  Nxe4 {[%clk 0:02:58]} 4. dxe5 {[%clk 0:02:57]}  d5 {[%clk 0:02:58]} 5. Nbd2 {[%clk 0:02:55]}  Bf5 {[%clk 0:02:50]} 6. Nxe4 {[%clk 0:02:51]}  Bxe4 {[%clk 0:02:50]} 7. Bd3 {[%clk 0:02:50]}  Nc6 {[%clk 0:02:49]} 8. O-O {[%clk 0:02:46]}  Bc5 {[%clk 0:02:48]} 9. Qe2 {[%clk 0:02:36]}  Bxd3 {[%clk 0:02:44]} 10. Qxd3 {[%clk 0:02:33]}  O-O {[%clk 0:02:39]} 11. Ng5 {[%clk 0:02:22]}  g6 {[%clk 0:02:39]} 12. Qh3 {[%clk 0:02:17]}  h5 {[%clk 0:02:38]} 13. e6 {[%clk 0:02:16]}  Ne5 {[%clk 0:02:32]} 14. exf7+ {[%clk 0:02:09]}  Nxf7 {[%clk 0:02:30]} 15. Ne6 {[%clk 0:02:10]}  Qd6 {[%clk 0:02:30]} 16. Nxf8 {[%clk 0:02:07]}  Rxf8 {[%clk 0:02:31]} 17. Be3 {[%clk 0:02:00]}  c6 {[%clk 0:02:25]} 18. Bxc5 {[%clk 0:01:58]}  Qxc5 {[%clk 0:02:26]} 19. c3 {[%clk 0:01:57]}  Nd6 {[%clk 0:02:21]} 20. Qe6+ {[%clk 0:01:51]}  Kg7 {[%clk 0:02:21]} 21. b4 {[%clk 0:01:41]}  Qxc3 {[%clk 0:02:17]} 22. Qxd6 {[%clk 0:01:41]}  Rf7 {[%clk 0:02:18]} 23. Rae1 {[%clk 0:01:40]}  Kh7 {[%clk 0:02:18]} 24. Re7 {[%clk 0:01:38]}  Rxe7 {[%clk 0:02:18]} 25. Qxe7+ {[%clk 0:01:39]}  Kg8 {[%clk 0:02:17]} 26. Qxb7 {[%clk 0:01:39]}  d4 {[%clk 0:02:17]} 27. a4 {[%clk 0:01:39]}  d3 {[%clk 0:02:17]} 28. Qc8+ {[%clk 0:01:39]}  Kh7 {[%clk 0:02:16]} 29. Qd7+ {[%clk 0:01:40]}  Kh6 {[%clk 0:02:17]} 30. Rd1 {[%clk 0:01:40]}  c5 {[%clk 0:02:15]} 31. Qxd3 {[%clk 0:01:40]}  Qf6 {[%clk 0:02:13]} 32. Qe3+ {[%clk 0:01:40]}  Kh7 {[%clk 0:02:12]} 33. bxc5 {[%clk 0:01:41]}  Qf5 {[%clk 0:02:09]} 34. Re1 {[%clk 0:01:42]}  a5 {[%clk 0:02:09]} 35. h3 {[%clk 0:01:43]}  h4 {[%clk 0:02:10]} 36. c6 {[%clk 0:01:43]}  g5 {[%clk 0:02:10]} 37. c7 {[%clk 0:01:44]}  g4 {[%clk 0:02:11]} 38. Qe4 {[%clk 0:01:45]}  Qg6 {[%clk 0:02:04]} 1-0


[Site "https://www.chess.com"]

[Event "Titled Tuesday Blitz July 18 Late 2023"]
[White "Nasuta, Grzegorz"]
[Black "Estrada Nieto, Julian"]
[WhiteFideId "1141686"]
[BlackFideId "5101018"]
[WhiteElo "2731"]
[BlackElo "2551"]
[Result "1-0"]
[Round "8"]
[TimeControl "180+2"]
[Date "2023.07.18"]
[WhiteClock "0:00:10"]
[BlackClock "0:00:10"]
[Board "30"]

1. e4 {[%clk 0:03:00]}  e5 {[%clk 0:02:59]} 2. Nf3 {[%clk 0:02:58]}  Nc6 {[%clk 0:02:59]} 3. Bc4 {[%clk 0:02:59]}  Bc5 {[%clk 0:03:00]} 4. O-O {[%clk 0:02:58]}  Nf6 {[%clk 0:03:00]} 5. d3 {[%clk 0:02:58]}  d6 {[%clk 0:02:59]} 6. c3 {[%clk 0:02:58]}  a6 {[%clk 0:03:00]} 7. Bb3 {[%clk 0:02:56]}  Ba7 {[%clk 0:03:00]} 8. Nbd2 {[%clk 0:02:57]}  O-O {[%clk 0:02:57]} 9. h3 {[%clk 0:02:57]}  Be6 {[%clk 0:02:55]} 10. Bc2 {[%clk 0:02:51]}  h6 {[%clk 0:02:55]} 11. Re1 {[%clk 0:02:50]}  Re8 {[%clk 0:02:55]} 12. Nf1 {[%clk 0:02:49]}  d5 {[%clk 0:02:55]} 13. exd5 {[%clk 0:02:49]}  Bxd5 {[%clk 0:02:53]} 14. Ng3 {[%clk 0:02:49]}  Qd7 {[%clk 0:02:50]} 15. Nh4 {[%clk 0:02:49]}  Rad8 {[%clk 0:02:37]} 16. Nhf5 {[%clk 0:02:47]}  Ne7 {[%clk 0:02:20]} 17. Rxe5 {[%clk 0:02:26]}  Nxf5 {[%clk 0:02:20]} 18. Rxf5 {[%clk 0:02:25]}  Be4 {[%clk 0:02:07]} 19. Rxf6 {[%clk 0:01:56]}  gxf6 {[%clk 0:02:07]} 20. Nxe4 {[%clk 0:01:00]}  Rxe4 {[%clk 0:02:06]} 21. Bxh6 {[%clk 0:01:00]}  Qf5 {[%clk 0:01:35]} 22. d4 {[%clk 0:00:53]}  Qe6 {[%clk 0:01:13]} 23. Bxe4 {[%clk 0:00:50]}  Qxe4 {[%clk 0:01:13]} 24. Qe1 {[%clk 0:00:15]}  Qd5 {[%clk 0:00:45]} 25. Qe2 {[%clk 0:00:13]}  Kh7 {[%clk 0:00:43]} 26. Be3 {[%clk 0:00:12]}  Rg8 {[%clk 0:00:40]} 27. f3 {[%clk 0:00:09]}  Re8 {[%clk 0:00:40]} 28. Qd3+ {[%clk 0:00:08]}  Kg8 {[%clk 0:00:38]} 29. Bf2 {[%clk 0:00:08]}  c5 {[%clk 0:00:37]} 30. c4 {[%clk 0:00:08]}  Qg5 {[%clk 0:00:33]} 31. d5 {[%clk 0:00:07]}  Bb8 {[%clk 0:00:33]} 32. Re1 {[%clk 0:00:05]}  Rxe1+ {[%clk 0:00:27]} 33. Bxe1 {[%clk 0:00:06]}  Qc1 {[%clk 0:00:27]} 34. Qd2 {[%clk 0:00:05]}  Qxc4 {[%clk 0:00:26]} 35. d6 {[%clk 0:00:06]}  Qd4+ {[%clk 0:00:21]} 36. Qxd4 {[%clk 0:00:05]}  cxd4 {[%clk 0:00:22]} 37. Bg3 {[%clk 0:00:05]}  d3 {[%clk 0:00:18]} 38. d7 {[%clk 0:00:03]}  Ba7+ {[%clk 0:00:18]} 39. Kf1 {[%clk 0:00:03]}  Bb6 {[%clk 0:00:18]} 40. Ke1 {[%clk 0:00:03]}  Kf8 {[%clk 0:00:18]} 41. Bd6+ {[%clk 0:00:03]}  Kg7 {[%clk 0:00:15]} 42. Be7 {[%clk 0:00:04]}  Ba5+ {[%clk 0:00:08]} 43. Kd1 {[%clk 0:00:04]}  d2 {[%clk 0:00:08]} 44. d8=Q {[%clk 0:00:05]}  Bxd8 {[%clk 0:00:08]} 45. Bxd8 {[%clk 0:00:06]}  f5 {[%clk 0:00:09]} 46. Kxd2 {[%clk 0:00:06]}  f4 {[%clk 0:00:09]} 47. Bb6 {[%clk 0:00:07]}  Kg6 {[%clk 0:00:10]} 48. Bf2 {[%clk 0:00:07]}  Kf5 {[%clk 0:00:11]} 49. Kd3 {[%clk 0:00:08]}  f6 {[%clk 0:00:12]} 50. Kc4 {[%clk 0:00:09]}  b5+ {[%clk 0:00:13]} 51. Kd5 {[%clk 0:00:08]}  Kg5 {[%clk 0:00:13]} 52. Ke4 {[%clk 0:00:08]}  f5+ {[%clk 0:00:13]} 53. Ke5 {[%clk 0:00:08]}  a5 {[%clk 0:00:13]} 54. b3 {[%clk 0:00:08]}  a4 {[%clk 0:00:13]} 55. bxa4 {[%clk 0:00:09]}  bxa4 {[%clk 0:00:10]} 56. a3 {[%clk 0:00:10]} 1-0


[Site "https://www.chess.com"]

[Event "Titled Tuesday Blitz July 18 Late 2023"]
[White "Gaitan, Juan Manuel"]
[Black "Matinian, Nikita"]
[WhiteFideId "121657"]
[BlackFideId "24129100"]
[WhiteElo "2622"]
[BlackElo "2734"]
[Result "0-1"]
[Round "8"]
[TimeControl "180+2"]
[Date "2023.07.18"]
[WhiteClock "0:00:04"]
[BlackClock "0:00:16"]
[Board "35"]

1. d4 {[%clk 0:03:00]}  Nf6 {[%clk 0:02:59]} 2. c4 {[%clk 0:02:59]}  g6 {[%clk 0:02:59]} 3. Nc3 {[%clk 0:02:58]}  Bg7 {[%clk 0:02:59]} 4. Nf3 {[%clk 0:02:53]}  d6 {[%clk 0:03:00]} 5. e4 {[%clk 0:02:52]}  O-O {[%clk 0:02:59]} 6. Be2 {[%clk 0:02:53]}  e5 {[%clk 0:03:00]} 7. O-O {[%clk 0:02:49]}  Na6 {[%clk 0:02:59]} 8. Be3 {[%clk 0:02:43]}  Ng4 {[%clk 0:02:52]} 9. Bg5 {[%clk 0:02:43]}  f6 {[%clk 0:02:52]} 10. Bc1 {[%clk 0:02:36]}  c6 {[%clk 0:02:47]} 11. h3 {[%clk 0:02:30]}  Nh6 {[%clk 0:02:47]} 12. Be3 {[%clk 0:02:31]}  Nf7 {[%clk 0:02:45]} 13. Qc1 {[%clk 0:02:24]}  Qe7 {[%clk 0:02:45]} 14. Rd1 {[%clk 0:02:23]}  Nc7 {[%clk 0:02:31]} 15. c5 {[%clk 0:02:21]}  dxc5 {[%clk 0:02:30]} 16. dxc5 {[%clk 0:02:22]}  Ne6 {[%clk 0:02:29]} 17. Bc4 {[%clk 0:02:13]}  Nxc5 {[%clk 0:02:21]} 18. Bxf7+ {[%clk 0:02:09]}  Rxf7 {[%clk 0:02:16]} 19. Nd5 {[%clk 0:02:09]}  cxd5 {[%clk 0:02:16]} 20. Bxc5 {[%clk 0:02:08]}  Qe8 {[%clk 0:02:12]} 21. Rxd5 {[%clk 0:02:05]}  Be6 {[%clk 0:02:12]} 22. Rd3 {[%clk 0:02:05]}  Rc8 {[%clk 0:02:12]} 23. Rc3 {[%clk 0:02:04]}  Rfc7 {[%clk 0:02:11]} 24. Bxa7 {[%clk 0:02:00]}  Rxc3 {[%clk 0:02:07]} 25. bxc3 {[%clk 0:02:01]}  Qc6 {[%clk 0:02:07]} 26. Be3 {[%clk 0:01:51]}  Qxe4 {[%clk 0:02:06]} 27. Nd2 {[%clk 0:01:43]}  Qc6 {[%clk 0:02:05]} 28. Qa3 {[%clk 0:01:39]}  f5 {[%clk 0:01:59]} 29. Nb3 {[%clk 0:01:25]}  f4 {[%clk 0:01:57]} 30. Bd2 {[%clk 0:01:25]}  f3 {[%clk 0:01:53]} 31. g3 {[%clk 0:01:25]}  Bxh3 {[%clk 0:01:52]} 32. Qb4 {[%clk 0:01:12]}  Bf8 {[%clk 0:01:42]} 33. Qh4 {[%clk 0:01:11]}  Bg2 {[%clk 0:01:40]} 34. Re1 {[%clk 0:01:10]}  Qd5 {[%clk 0:01:32]} 35. Qg5 {[%clk 0:01:02]}  Re8 {[%clk 0:01:18]} 36. Re3 {[%clk 0:00:47]}  Qe6 {[%clk 0:01:02]} 37. Qh4 {[%clk 0:00:44]}  Be7 {[%clk 0:00:53]} 38. Qh6 {[%clk 0:00:44]}  Qf5 {[%clk 0:00:50]} 39. Re1 {[%clk 0:00:40]}  Bf8 {[%clk 0:00:50]} 40. Qh4 {[%clk 0:00:38]}  Re6 {[%clk 0:00:44]} 41. g4 {[%clk 0:00:22]}  Qf7 {[%clk 0:00:40]} 42. Qg3 {[%clk 0:00:19]}  Bd6 {[%clk 0:00:36]} 43. Re4 {[%clk 0:00:19]}  Qd7 {[%clk 0:00:32]} 44. Be3 {[%clk 0:00:19]}  Qb5 {[%clk 0:00:32]} 45. Nd2 {[%clk 0:00:18]}  Qe2 {[%clk 0:00:31]} 46. Qh4 {[%clk 0:00:13]}  Be7 {[%clk 0:00:24]} 47. Qh6 {[%clk 0:00:12]}  Qd1+ {[%clk 0:00:23]} 48. Kh2 {[%clk 0:00:12]}  Qh1+ {[%clk 0:00:19]} 49. Kg3 {[%clk 0:00:13]}  Qxh6 {[%clk 0:00:19]} 50. Bxh6 {[%clk 0:00:14]}  g5 {[%clk 0:00:20]} 51. Nxf3 {[%clk 0:00:11]}  Bxf3 {[%clk 0:00:20]} 52. Kxf3 {[%clk 0:00:11]}  Rxh6 {[%clk 0:00:20]} 53. Rc4 {[%clk 0:00:12]}  Kf7 {[%clk 0:00:20]} 54. Ke4 {[%clk 0:00:12]}  Rf6 {[%clk 0:00:20]} 55. Rc7 {[%clk 0:00:13]}  Rxf2 {[%clk 0:00:19]} 56. Kxe5 {[%clk 0:00:13]}  Rxa2 {[%clk 0:00:19]} 57. Rxb7 {[%clk 0:00:14]}  Re2+ {[%clk 0:00:16]} 58. Kf5 {[%clk 0:00:14]}  Rf2+ {[%clk 0:00:16]} 59. Ke5 {[%clk 0:00:14]}  Rf4 {[%clk 0:00:16]} 60. Rc7 {[%clk 0:00:14]}  Rxg4 {[%clk 0:00:16]} 61. c4 {[%clk 0:00:14]}  Rf4 {[%clk 0:00:16]} 62. c5 {[%clk 0:00:15]}  h5 {[%clk 0:00:16]} 63. c6 {[%clk 0:00:15]}  Rc4 {[%clk 0:00:16]} 64. Rc8 {[%clk 0:00:12]}  Rc5+ {[%clk 0:00:16]} 65. Ke4 {[%clk 0:00:13]}  h4 {[%clk 0:00:16]} 66. Kd4 {[%clk 0:00:12]}  g4 {[%clk 0:00:15]} 67. Rc7 {[%clk 0:00:10]}  Rc1 {[%clk 0:00:15]} 68. Rc8 {[%clk 0:00:09]}  h3 {[%clk 0:00:16]} 69. Ke4 {[%clk 0:00:08]}  h2 {[%clk 0:00:15]} 70. Rh8 {[%clk 0:00:04]}  h1=Q+ {[%clk 0:00:16]} 0-1


[Site "https://www.chess.com"]

[Event "Titled Tuesday Blitz July 18 Late 2023"]
[White "Vovk, Orest"]
[Black "Mikhailovsky, Vladimir"]
[WhiteFideId "14113490"]
[BlackFideId "34105414"]
[WhiteElo "2580"]
[BlackElo "2731"]
[Result "1-0"]
[Round "8"]
[TimeControl "180+2"]
[Date "2023.07.18"]
[WhiteClock "0:00:02"]
[BlackClock "0:00:00"]
[Board "36"]

1. g4 {[%clk 0:03:00]}  d5 {[%clk 0:02:57]} 2. h3 {[%clk 0:03:00]}  e5 {[%clk 0:02:55]} 3. Bg2 {[%clk 0:03:01]}  c6 {[%clk 0:02:55]} 4. d4 {[%clk 0:03:01]}  e4 {[%clk 0:02:54]} 5. c4 {[%clk 0:03:01]}  Be6 {[%clk 0:02:45]} 6. Nc3 {[%clk 0:03:01]}  Nf6 {[%clk 0:02:40]} 7. Qb3 {[%clk 0:03:00]}  Qb6 {[%clk 0:02:23]} 8. c5 {[%clk 0:02:59]}  Qxb3 {[%clk 0:02:14]} 9. axb3 {[%clk 0:02:58]}  Na6 {[%clk 0:02:14]} 10. Ra4 {[%clk 0:02:55]}  Bc8 {[%clk 0:01:54]} 11. Bf4 {[%clk 0:02:50]}  b5 {[%clk 0:01:52]} 12. Ra5 {[%clk 0:02:24]}  Be7 {[%clk 0:01:46]} 13. Kd2 {[%clk 0:01:54]}  Bd8 {[%clk 0:01:42]} 14. Ra1 {[%clk 0:01:50]}  Nb4 {[%clk 0:01:41]} 15. Na2 {[%clk 0:01:41]}  Nxa2 {[%clk 0:01:32]} 16. Rxa2 {[%clk 0:01:42]}  a5 {[%clk 0:01:32]} 17. e3 {[%clk 0:01:41]}  h5 {[%clk 0:01:23]} 18. g5 {[%clk 0:01:41]}  Nd7 {[%clk 0:01:23]} 19. Ne2 {[%clk 0:01:33]}  Nb8 {[%clk 0:01:22]} 20. Rha1 {[%clk 0:01:09]}  Na6 {[%clk 0:01:15]} 21. Rxa5 {[%clk 0:00:58]}  Bxa5+ {[%clk 0:01:16]} 22. Rxa5 {[%clk 0:00:58]}  Bb7 {[%clk 0:01:17]} 23. Kc3 {[%clk 0:00:52]}  Kd8 {[%clk 0:00:49]} 24. b4 {[%clk 0:00:39]}  h4 {[%clk 0:00:48]} 25. Be5 {[%clk 0:00:39]}  Rg8 {[%clk 0:00:39]} 26. g6 {[%clk 0:00:34]}  f6 {[%clk 0:00:28]} 27. Bd6 {[%clk 0:00:32]}  Nc7 {[%clk 0:00:25]} 28. Nf4 {[%clk 0:00:30]}  Kd7 {[%clk 0:00:20]} 29. f3 {[%clk 0:00:22]}  f5 {[%clk 0:00:13]} 30. fxe4 {[%clk 0:00:21]}  dxe4 {[%clk 0:00:14]} 31. Bf1 {[%clk 0:00:13]}  Rxa5 {[%clk 0:00:05]} 32. bxa5 {[%clk 0:00:13]}  Ba6 {[%clk 0:00:05]} 33. b4 {[%clk 0:00:13]}  Nd5+ {[%clk 0:00:05]} 34. Nxd5 {[%clk 0:00:13]}  cxd5 {[%clk 0:00:06]} 35. Bf4 {[%clk 0:00:12]}  Kc6 {[%clk 0:00:06]} 36. Be2 {[%clk 0:00:11]}  Rf8 {[%clk 0:00:05]} 37. Be5 {[%clk 0:00:08]}  Rg8 {[%clk 0:00:02]} 38. Kd2 {[%clk 0:00:07]}  Bc8 {[%clk 0:00:02]} 39. Bd6 {[%clk 0:00:02]}  Bd7 {[%clk 0:00:02]} 40. Be5 {[%clk 0:00:02]}  Be8 {[%clk 0:00:03]} 41. Bh5 {[%clk 0:00:02]}  Rh8 {[%clk 0:00:03]} 42. Be2 {[%clk 0:00:02]}  Bxg6 {[%clk 0:00:04]} 43. Bxg7 {[%clk 0:00:02]}  Rg8 {[%clk 0:00:05]} 44. Be5 {[%clk 0:00:03]}  Be8 {[%clk 0:00:04]} 45. Ke1 {[%clk 0:00:03]}  Rg2 {[%clk 0:00:04]} 46. Kf1 {[%clk 0:00:03]}  Rg8 {[%clk 0:00:03]} 47. a6 {[%clk 0:00:01]}  Bd7 {[%clk 0:00:02]} 48. a7 {[%clk 0:00:02]}  Kb7 {[%clk 0:00:01]} 49. Bb8 {[%clk 0:00:02]}  Bc6 {[%clk 0:00:00]} 50. Bh5 {[%clk 0:00:02]} 1-0


[Site "https://www.chess.com"]